lending/lending_fUSD_20250719
["ID","MTS","AMOUNT","RATE_DAILY","PERIOD"]
[373238035,1752919885549,-2233.87,0.00021369,2]
[373238036,1752919885559,-732.76,0.00021369,2]
[373238037,1752919885568,-851.61,0.00021369,2]
[373238038,1752919885578,-718.81,0.00021369,2]
[373238039,1752919885587,-1358.36,0.00021369,2]
[373238040,1752919885597,-1477.64,0.00021369,2]
[373238041,1752919885607,-151.0,0.00021369,2]
[373238042,1752919885616,-646.65,0.00021369,2]
[373238043,1752919885626,-480.0,0.00021369,2]
[373238044,1752919885636,-482.5,0.00021369,2]
[373238045,1752919885645,-1030.46,0.00021369,2]
[373238046,1752919885655,-602.24,0.00021369,2]
[373238047,1752919885664,-480.0,0.00021369,2]
[373238048,1752919885674,-480.0,0.00021369,2]
[373238049,1752919885684,-480.0,0.00021369,2]
[373238050,1752919885694,-658.15,0.00021369,2]
[373238051,1752919885703,-480.0,0.00021369,2]
[373238052,1752919885713,-676.84,0.00021369,2]
[373238053,1752919885722,-480.0,0.00021369,2]
[373238054,1752919885731,-1120.43,0.00021369,2]
[373238055,1752919885741,-837.04,0.00021369,2]
[373238056,1752919885751,-1947.23,0.00021369,2]
[373238057,1752919885761,-1479.44,0.00021369,2]
[373238058,1752919885771,-1240.19,0.00021369,2]
[373238059,1752919885780,-1213.06,0.00021369,2]
[373238060,1752919885790,-1104.98,0.00021369,2]
[373238061,1752919885800,-1325.85,0.00021369,2]
[373238062,1752919885809,-495.17,0.00021369,2]
[373238063,1752919885820,-602.67,0.00021369,2]
[373238064,1752919885831,-1656.17,0.00021369,2]
[373238065,1752919885844,-2682.58,0.00021369,2]
[373238066,1752919885857,-955.39,0.00021369,2]
[373238067,1752919885867,-2820.87,0.00021369,2]
[373238068,1752919885878,-824.58,0.00021369,2]
[373238069,1752919885887,-1507.25,0.00021369,2]
[373238070,1752919885898,-1304.87,0.00021369,2]
[373238071,1752919885909,-1820.5,0.00021369,2]
[373238072,1752919885926,-1009.35,0.00021369,2]
[373238073,1752919885947,-1085.77,0.00021369,2]
[373238074,1752919885969,-677.53,0.00021369,2]
[373238075,1752919885989,-621.85,0.00021369,2]
[373238076,1752919886010,-578.45,0.00021369,2]
[373238077,1752919886049,-506.06,0.00021369,2]
[373238078,1752919886076,-1106.32,0.00021369,2]
[373238079,1752919886098,-1288.84,0.00021369,2]
[373238080,1752919886114,-505.94,0.00021369,2]
[373238081,1752919886123,-518.09,0.00021369,2]
[373238082,1752919886132,-1483.96,0.00021369,2]
[373238083,1752919886142,-892.94,0.00021369,2]
[373238084,1752919886151,-781.22,0.00021369,2]
[373238085,1752919886162,-1122.99,0.00021369,2]
[373238086,1752919886171,-699.81,0.00021369,2]
[373238087,1752919886180,-573.39617354,0.00021369,2]
[373238088,1752919886190,-2398.3,0.00021369,2]
[373238089,1752919886200,-480.0,0.00021369,2]
[373238090,1752919886210,-1143.42,0.00021369,2]
[373238091,1752919886220,-852.18,0.00021369,2]
[373238092,1752919886229,-539.87,0.00021369,2]
[373238093,1752919886239,-1158.1,0.00021369,2]
[373238094,1752919886249,-480.0,0.00021369,2]
[373238095,1752919886259,-502.23,0.00021369,2]
[373238096,1752919886271,-5192.94,0.0002137,2]
[373238097,1752919886281,-1000.0,0.00021377,2]
[373238098,1752919886290,-1000.0,0.00021385,2]
[373238099,1752919886300,-3251.83947105,0.00021392,2]
[373238100,1752919886310,-174.75,0.00021406,2]
[373238101,1752919886319,-150.0,0.00021422,2]
[373238102,1752919886329,-150.0,0.00021422,2]
[373238103,1752919886343,-150.0,0.00021423,2]
[373238104,1752919886353,-150.0,0.00021427,2]
[373238105,1752919886362,-1000.0,0.00021427,2]
[373238106,1752919886371,-1000.0,0.00021435,2]
[373238107,1752919886380,-150.0,0.00021445,2]
[373238108,1752919886390,-150.0,0.00021446,2]
[373238109,1752919886400,-150.0,0.00021447,2]
[373238110,1752919886409,-150.0,0.00021453,2]
[373238111,1752919886418,-3015.6895147,0.00021454,2]
[373238112,1752919886428,-1000.0,0.00021458,2]
[373238113,1752919886438,-1000.0,0.00021458,2]
[373238114,1752919886447,-150.0,0.00021459,2]
[373238115,1752919886457,-150.0,0.00021467,2]
[373238116,1752919886467,-2776.42,0.00021469,2]
[373238117,1752919886476,-1000.0,0.00021469,2]
[373238118,1752919886486,-152.0,0.00021471,7]
[373238119,1752919886495,-518.65,0.00021479,2]
[373238120,1752919886505,-3225.72,0.00021479,2]
[373238121,1752919886515,-929.65,0.00021479,2]
[373238122,1752919886524,-546.84,0.00021479,2]
[373238123,1752919886534,-3351.16,0.00021479,2]
[373238124,1752919886543,-3462.2,0.00021479,2]
[373238125,1752919886553,-3220.57,0.00021479,2]
[373238126,1752919886563,-877.62,0.00021479,2]
[373238127,1752919886572,-522.59,0.00021479,2]
[373238128,1752919886580,-611.8,0.00021479,2]
[373238129,1752919886589,-685.01,0.00021479,2]
[373238130,1752919886598,-992.53,0.00021479,2]
[373238131,1752919886607,-588.9,0.00021479,2]
[373238132,1752919886617,-374.83112497,0.00021479,2]
[373238133,1752919886626,-2233.87,0.00021479,2]
[373238134,1752919886635,-732.76,0.00021479,2]
[373238135,1752919886644,-851.61,0.00021479,2]
[373238136,1752919886654,-718.81,0.00021479,2]
[373238137,1752919886663,-1358.36,0.00021479,2]
[373238138,1752919886673,-1477.64,0.00021479,2]
[373238139,1752919886683,-646.65,0.00021479,2]
[373238140,1752919886692,-480.0,0.00021479,2]
[373238141,1752919886702,-482.5,0.00021479,2]
[373238142,1752919886711,-1030.46,0.00021479,2]
[373238143,1752919886720,-602.24,0.00021479,2]
[373238144,1752919886730,-628.07809797,0.00021479,2]
[373238145,1752919886739,-480.0,0.00021479,2]
[373238146,1752919886749,-258.63546416,0.00021479,2]
[373238147,1752919886759,-658.15,0.00021479,2]
[373238148,1752919886770,-480.0,0.00021479,2]
[373238149,1752919886779,-676.84,0.00021479,2]
[373238150,1752919886788,-480.0,0.00021479,2]
[373238151,1752919886798,-1120.43,0.00021479,2]
[373238152,1752919886807,-837.04,0.00021479,2]
[373238153,1752919886816,-1947.23,0.00021479,2]
[373238154,1752919886826,-1479.44,0.00021479,2]
[373238155,1752919886839,-1240.19,0.00021479,2]
[373238156,1752919886848,-1213.06,0.00021479,2]
[373238157,1752919886858,-1325.85,0.00021479,2]
[373238158,1752919886867,-1104.98,0.00021479,2]
[373238159,1752919886878,-495.17,0.00021479,2]
[373238160,1752919886888,-602.67,0.00021479,2]
[373238161,1752919886897,-1656.17,0.00021479,2]
[373238162,1752919886907,-955.39,0.00021479,2]
[373238163,1752919886916,-2820.87,0.00021479,2]
[373238164,1752919886927,-2682.58,0.00021479,2]
[373238165,1752919886936,-824.58,0.00021479,2]
[373238166,1752919886945,-1507.25,0.00021479,2]
[373238167,1752919886954,-1304.87,0.00021479,2]
[373238168,1752919886964,-1820.5,0.00021479,2]
[373238169,1752919886973,-1009.35,0.00021479,2]
[373238170,1752919886982,-1085.77,0.00021479,2]
[373238171,1752919886992,-677.53,0.00021479,2]
[373238172,1752919887001,-621.85,0.00021479,2]
[373238173,1752919887011,-578.45,0.00021479,2]
[373238174,1752919887021,-506.06,0.00021479,2]
[373238175,1752919887030,-1106.32,0.00021479,2]
[373238176,1752919887039,-1288.84,0.00021479,2]
[373238177,1752919887049,-505.94,0.00021479,2]
[373238178,1752919887058,-518.09,0.00021479,2]
[373238179,1752919887068,-1483.96,0.00021479,2]
[373238180,1752919887077,-892.94,0.00021479,2]
[373238181,1752919887086,-781.22,0.00021479,2]
[373238182,1752919887096,-1122.99,0.00021479,2]
[373238183,1752919887105,-699.81,0.00021479,2]
[373238184,1752919887115,-2398.3,0.00021479,2]
[373238185,1752919887124,-480.0,0.00021479,2]
[373238186,1752919887134,-1143.42,0.00021479,2]
[373238187,1752919887145,-852.18,0.00021479,2]
[373238188,1752919887154,-539.87,0.00021479,2]
[373238189,1752919887163,-1158.1,0.00021479,2]
[373238190,1752919887173,-480.0,0.00021479,2]
[373238191,1752919887183,-4053.34,0.000215,2]
[373238192,1752919887192,-28580.86222687,0.000215,2]
[373238193,1752919887202,-216.56487315,0.000215,2]
[373238194,1752919887212,-2000.0,0.000215,2]
[373238195,1752919887222,-150.0,0.00021502,2]
[373238196,1752919887232,-150.0,0.00021541,5]
[373238197,1752919887242,-257.08312178,0.00021541,5]
[373238198,1752919887251,-150.0,0.00021564,2]
[373238199,1752919887261,-1895.45,0.00021565,2]
[373238200,1752919887271,-203.0,0.0002157,2]
[373238201,1752919887280,-207.0,0.0002157,2]
[373238202,1752919887290,-212.0,0.0002157,2]
[373238203,1752919887299,-150.0,0.00021571,5]
[373238204,1752919887309,-518.65,0.00021589,2]
[373238205,1752919887318,-3225.72,0.00021589,2]
[373238206,1752919887327,-929.65,0.00021589,2]
[373238207,1752919887337,-546.84,0.00021589,2]
[373238208,1752919887346,-3351.16,0.00021589,2]
[373238209,1752919887356,-3462.2,0.00021589,2]
[373238210,1752919887365,-3220.57,0.00021589,2]
[373238211,1752919887375,-877.62,0.00021589,2]
[373238212,1752919887384,-522.59,0.00021589,2]
[373238213,1752919887393,-611.8,0.00021589,2]
[373238214,1752919887402,-685.01,0.00021589,2]
[373238215,1752919887412,-588.9,0.00021589,2]
[373238216,1752919887421,-992.53,0.00021589,2]
[373238217,1752919887431,-2233.87,0.00021589,2]
[373238218,1752919887441,-732.76,0.00021589,2]
[373238219,1752919887451,-851.61,0.00021589,2]
[373238220,1752919887460,-718.81,0.00021589,2]
[373238221,1752919887469,-1358.36,0.00021589,2]
[373238222,1752919887478,-1477.64,0.00021589,2]
[373238223,1752919887488,-646.65,0.00021589,2]
[373238224,1752919887497,-429.46976319,0.00021589,2]
[373238225,1752919887506,-482.5,0.00021589,2]
[373238226,1752919887516,-1030.46,0.00021589,2]
[373238227,1752919887525,-602.24,0.00021589,2]
[373238228,1752919887534,-480.0,0.00021589,2]
[373238229,1752919887544,-658.15,0.00021589,2]
[373238230,1752919887553,-480.0,0.00021589,2]
[373238231,1752919887563,-676.84,0.00021589,2]
[373238232,1752919887574,-379.66,0.00021589,2]
[373238233,1752919887583,-1120.43,0.00021589,2]
[373238234,1752919887593,-837.04,0.00021589,2]
[373238235,1752919887603,-1947.23,0.00021589,2]
[373238236,1752919887612,-1479.44,0.00021589,2]
[373238237,1752919887622,-1240.19,0.00021589,2]
[373238238,1752919887631,-1213.06,0.00021589,2]
[373238239,1752919887641,-1325.85,0.00021589,2]
[373238240,1752919887651,-1104.98,0.00021589,2]
[373238241,1752919887660,-495.17,0.00021589,2]
[373238242,1752919887669,-602.67,0.00021589,2]
[373238243,1752919887678,-1656.17,0.00021589,2]
[373238244,1752919887687,-955.39,0.00021589,2]
[373238245,1752919887697,-2820.87,0.00021589,2]
[373238246,1752919887706,-2682.58,0.00021589,2]
[373238247,1752919887715,-824.58,0.00021589,2]
[373238248,1752919887725,-1507.25,0.00021589,2]
[373238249,1752919887734,-1304.87,0.00021589,2]
[373238250,1752919887743,-1820.5,0.00021589,2]
[373238251,1752919887752,-1009.35,0.00021589,2]
[373238252,1752919887762,-1085.77,0.00021589,2]
[373238253,1752919887773,-677.53,0.00021589,2]
[373238254,1752919887783,-578.45,0.00021589,2]
[373238255,1752919887792,-506.06,0.00021589,2]
[373238256,1752919887802,-621.85,0.00021589,2]
[373238257,1752919887811,-1106.32,0.00021589,2]
[373238258,1752919887820,-1288.84,0.00021589,2]
[373238259,1752919887829,-505.94,0.00021589,2]
[373238260,1752919887843,-518.09,0.00021589,2]
[373238261,1752919887852,-1483.96,0.00021589,2]
[373238262,1752919887861,-892.94,0.00021589,2]
[373238263,1752919887870,-781.22,0.00021589,2]
[373238264,1752919887881,-1122.99,0.00021589,2]
[373238265,1752919887890,-699.81,0.00021589,2]
[373238266,1752919887899,-2398.3,0.00021589,2]
[373238267,1752919887909,-518.21893264,0.00021589,2]
[373238268,1752919887919,-1143.42,0.00021589,2]
[373238269,1752919887928,-852.18,0.00021589,2]
[373238270,1752919887938,-539.87,0.00021589,2]
[373238271,1752919887947,-1158.1,0.00021589,2]
[373238272,1752919887956,-195.17,0.00021589,2]
[373238273,1752919887965,-2037.74,0.00021595,2]
[373238274,1752919887974,-500.0,0.00021605,2]
[373238275,1752919887984,-2525.0,0.00021605,2]
[373238276,1752919887993,-870.0,0.00021605,2]
[373238277,1752919888003,-778.0,0.00021605,2]
[373238278,1752919888012,-616.0,0.00021605,2]
[373238279,1752919888022,-616.0,0.00021605,2]
[373238280,1752919888031,-150.0,0.00021611,2]
[373238281,1752919888040,-150.0,0.00021624,2]
[373238282,1752919888050,-1014.88760407,0.00021639,2]
[373238283,1752919888059,-1095.5481816,0.00021648,2]
[373238284,1752919888068,-1000.0,0.0002166,2]
[373238285,1752919888078,-1000.0,0.00021662,2]
[373238286,1752919888087,-1000.0,0.00021664,2]
[373238287,1752919888096,-518.73981011,0.00021698,2]
[373238288,1752919888105,-3225.92102356,0.00021698,2]
[373238289,1752919888115,-929.7908963,0.00021698,2]
[373238290,1752919888124,-547.04203206,0.00021698,2]
[373238291,1752919888134,-3351.312,0.00021698,2]
[373238292,1752919888143,-3462.29809533,0.00021698,2]
[373238293,1752919888152,-3220.65533599,0.00021698,2]
[373238294,1752919888162,-877.76,0.00021698,2]
[373238295,1752919888172,-522.80344731,0.00021698,2]
[373238296,1752919888181,-611.94426351,0.00021698,2]
[373238297,1752919888191,-685.13670442,0.00021698,2]
[373238298,1752919888200,-589.13014084,0.00021698,2]
[373238299,1752919888209,-992.69874407,0.00021698,2]
[373238300,1752919888219,-2234.07264132,0.00021698,2]
[373238301,1752919888228,-732.81849089,0.00021698,2]
[373238302,1752919888238,-851.73573908,0.00021698,2]
[373238303,1752919888247,-718.9249327,0.00021698,2]
[373238304,1752919888257,-1358.41696711,0.00021698,2]
[373238305,1752919888267,-1477.68455442,0.00021698,2]
[373238306,1752919888276,-646.70143189,0.00021698,2]
[373238307,1752919888286,-482.53000103,0.00021698,2]
[373238308,1752919888295,-1030.64431812,0.00021698,2]
[373238309,1752919888305,-602.30007241,0.00021698,2]
[373238310,1752919888315,-389.21189377,0.00021698,2]
[373238311,1752919888326,-658.15126753,0.00021698,2]
[373238312,1752919888335,-300.70241045,0.00021698,2]
[373238313,1752919888346,-676.84435307,0.00021698,2]
[373238314,1752919888356,-1120.53319014,0.00021698,2]
[373238315,1752919888366,-837.20316011,0.00021698,2]
[373238316,1752919888376,-1947.39533074,0.00021698,2]
[373238317,1752919888386,-1479.55968804,0.00021698,2]
[373238318,1752919888397,-1240.28554454,0.00021698,2]
[373238319,1752919888407,-1213.23126834,0.00021698,2]
[373238320,1752919888417,-1326.02467609,0.00021698,2]
[373238321,1752919888427,-1105.05155931,0.00021698,2]
[373238322,1752919888437,-602.77,0.00021698,2]
[373238323,1752919888447,-495.35774152,0.00021698,2]
[373238324,1752919888457,-1656.24100561,0.00021698,2]
[373238325,1752919888467,-955.4735744,0.00021698,2]
[373238326,1752919888476,-2820.99472016,0.00021698,2]
[373238327,1752919888486,-2682.65423276,0.00021698,2]
[373238328,1752919888495,-824.69989636,0.00021698,2]
[373238329,1752919888505,-1507.27131292,0.00021698,2]
[373238330,1752919888515,-1304.97381703,0.00021698,2]
[373238331,1752919888524,-1820.52715076,0.00021698,2]
[373238332,1752919888534,-1009.55991328,0.00021698,2]
[373238333,1752919888544,-1085.97217629,0.00021698,2]
[373238334,1752919888553,-677.67363868,0.00021698,2]
[373238335,1752919888563,-578.65623494,0.00021698,2]
[373238336,1752919888573,-506.09758982,0.00021698,2]
[373238337,1752919888583,-622.08653652,0.00021698,2]
[373238338,1752919888593,-1106.38,0.00021698,2]
[373238339,1752919888602,-1289.01278457,0.00021698,2]
[373238340,1752919888612,-506.15210001,0.00021698,2]
[373238341,1752919888621,-518.26937434,0.00021698,2]
[373238342,1752919888631,-1484.09955996,0.00021698,2]
[373238343,1752919888642,-892.94479002,0.00021698,2]
[373238344,1752919888652,-781.37596341,0.00021698,2]
[373238345,1752919888662,-1123.15959922,0.00021698,2]
[373238346,1752919888672,-699.9822065,0.00021698,2]
[373238347,1752919888682,-2398.30398369,0.00021698,2]
[373238348,1752919888692,-1143.57149211,0.00021698,2]
[373238349,1752919888702,-852.27290125,0.00021698,2]
[373238350,1752919888711,-539.96592538,0.00021698,2]
[373238351,1752919888721,-1158.26189294,0.00021698,2]
[373238352,1752919888731,-152.0,0.00021711,8]
[373238353,1752919888741,-1000.0,0.00021719,2]
[373238354,1752919888751,-1000.0,0.00021725,2]
[373238355,1752919888761,-1000.0,0.00021726,2]
[373238356,1752919888772,-1000.0,0.0002175,2]
[373238357,1752919888786,-600.0,0.00021754,2]
[373238358,1752919888796,-150.0,0.0002177,2]
[373238359,1752919888806,-150.0,0.00021807,2]
[373238360,1752919888816,-203.0,0.0002181,2]
[373238361,1752919888826,-207.0,0.0002181,2]
[373238362,1752919888839,-212.0,0.0002181,2]
[373238363,1752919888850,-150.0,0.00021825,2]
[373238364,1752919888860,-150.0,0.00021827,2]
[373238365,1752919888870,-150.0,0.00021845,2]
[373238366,1752919888881,-150.0,0.00021847,2]
[373238367,1752919888891,-150.0,0.00021858,2]
[373238368,1752919888901,-3504.41,0.00021868,2]
[373238369,1752919888911,-500.0,0.00021879,2]
[373238370,1752919888921,-2525.0,0.00021879,2]
[373238371,1752919888931,-870.0,0.00021879,2]
[373238372,1752919888941,-934.0,0.00021879,2]
[373238373,1752919888951,-616.0,0.00021879,2]
[373238374,1752919888961,-616.0,0.00021879,2]
[373238375,1752919888970,-3827.85,0.00021879,4]
[373238376,1752919888980,-300.0,0.0002188,2]
[373238377,1752919888991,-150.0,0.00021883,2]
[373238378,1752919889001,-150.0,0.00021884,2]
[373238379,1752919889011,-150.0,0.00021884,2]
[373238380,1752919889022,-827.23122648,0.00021899,2]
[373238381,1752919889032,-1000.0,0.000219,4]
[373238382,1752919889042,-1000.0,0.000219,4]
[373238383,1752919889052,-1000.0,0.000219,4]
[373238384,1752919889062,-1018.0,0.000219,5]
[373238385,1752919889072,-1000.0,0.000219,5]
[373238386,1752919889081,-1000.0,0.000219,5]
[373238387,1752919889092,-1000.0,0.000219,4]
[373238388,1752919889101,-1000.0,0.000219,3]
[373238389,1752919889111,-1000.0,0.000219,3]
[373238390,1752919889121,-457.20091477,0.000219,2]
[373238391,1752919889131,-2000.0,0.000219,2]
[373238392,1752919889141,-1400.0,0.00021904,2]
[373238393,1752919889151,-150.0,0.00021907,2]
[373238394,1752919889162,-1745.61598771,0.00021916,2]
[373238395,1752919889172,-500.0,0.00021917,2]
[373238396,1752919889182,-500.0,0.00021917,2]
[373238397,1752919889192,-425.75,0.00021917,2]
[373238398,1752919889202,-500.0,0.00021917,2]
[373238399,1752919889212,-500.0,0.00021917,2]
[373238400,1752919889222,-500.0,0.00021917,2]
[373238401,1752919889231,-500.0,0.00021917,2]
[373238402,1752919889242,-500.0,0.00021917,2]
[373238403,1752919889251,-500.0,0.00021917,2]
[373238404,1752919889261,-500.0,0.00021917,2]
[373238405,1752919889273,-500.0,0.00021917,2]
[373238406,1752919889282,-500.0,0.00021917,2]
[373238407,1752919889293,-500.0,0.00021917,2]
[373238408,1752919889303,-500.0,0.00021917,2]
[373238409,1752919889313,-500.0,0.00021917,2]
[373238410,1752919889323,-500.0,0.00021917,2]
[373238411,1752919889333,-500.0,0.00021917,2]
[373238412,1752919889343,-500.0,0.00021917,2]
[373238413,1752919889353,-485.51819251,0.00021917,2]
[373238414,1752919889363,-151.0,0.00021918,2]
[373238415,1752919889373,-151.0,0.00021918,2]
[373238416,1752919889384,-151.0,0.00021918,2]
[373238417,1752919889394,-151.0,0.00021918,2]
[373238418,1752919889404,-151.0,0.00021918,2]
[373238419,1752919889414,-5000.0,0.00021918,2]
[373238420,1752919889424,-1000.0,0.00021918,3]
[373238421,1752919889434,-1000.0,0.00021918,3]
[373238422,1752919889445,-1000.0,0.00021918,3]
[373238423,1752919889455,-1000.0,0.00021918,3]
[373238424,1752919889465,-1000.0,0.00021918,3]
[373238425,1752919889475,-667.0,0.00021918,3]
[373238426,1752919889484,-151.96,0.00021918,2]
[373238427,1752919889494,-150.0,0.00021918,2]
[373238428,1752919889504,-205.76087581,0.00021918,2]
[373238429,1752919889514,-500.0,0.00021918,2]
[373238430,1752919889524,-500.0,0.00021918,2]
[373238431,1752919889534,-500.0,0.00021918,2]
[373238432,1752919889544,-150.0,0.00021918,2]
[373238433,1752919889555,-150.0,0.00021918,2]
[373238434,1752919889565,-1811.45,0.00021919,2]
[373238435,1752919889575,-150.0,0.00021921,2]
[373238436,1752919889585,-150.0,0.00021928,2]
[373238437,1752919889595,-150.0,0.00021933,2]
[373238438,1752919889605,-150.0,0.00021947,2]
[373238439,1752919889615,-152.0,0.00021952,9]
[373238440,1752919889625,-324.19,0.00021954,2]
[373238441,1752919889637,-228.17,0.00021956,2]
[373238442,1752919889646,-1000.0,0.00021969,2]
[373238443,1752919889656,-14142.86564286,0.0002198,2]
[373238444,1752919889666,-1000.0,0.00021982,2]
[373238445,1752919889676,-150.0,0.00021984,2]
[373238446,1752919889686,-3078.3313369,0.00021985,2]
[373238447,1752919889698,-151.0,0.00021985,7]
[373238448,1752919889707,-48553.9455321,0.00021985,2]
[373238449,1752919889718,-1000.0,0.00022,7]
[373238450,1752919889728,-8846.0,0.00022,3]
[373238451,1752919889738,-2126.32,0.00022,2]
[373238452,1752919889748,-453864.74144094,0.00022,7]
[373238453,1752919889759,-22979.95991968,0.00022,2]
[373238454,1752919889770,-7367.44725415,0.00022,2]
[373238455,1752919889779,-1000.0,0.00022,7]
[373238456,1752919889790,-1000.0,0.00022,7]
[373238457,1752919889799,-1000.0,0.00022,7]
[373238458,1752919889810,-1000.0,0.00022,7]
[373238459,1752919889820,-1000.0,0.00022,7]
[373238460,1752919889829,-1000.0,0.00022,7]
[373238461,1752919889843,-1000.0,0.00022,7]
[373238462,1752919889854,-150.0,0.00022,2]
[373238463,1752919889863,-2101.40130307,0.00022,2]
[373238464,1752919889875,-203.0,0.00022,2]
[373238465,1752919889885,-203.0,0.00022,2]
[373238466,1752919889896,-203.0,0.00022,2]
[373238467,1752919889907,-203.0,0.00022,2]
[373238468,1752919889919,-207.0,0.00022,2]
[373238469,1752919889930,-207.0,0.00022,2]
[373238470,1752919889939,-207.0,0.00022,2]
[373238471,1752919889949,-207.0,0.00022,2]
[373238472,1752919889959,-212.0,0.00022,2]
[373238473,1752919889969,-212.0,0.00022,2]
[373238474,1752919889979,-212.0,0.00022,2]
[373238475,1752919889990,-212.0,0.00022,2]
[373238476,1752919890000,-247.0,0.00022,2]
[373238477,1752919890010,-12194.95,0.00022,7]
[373238478,1752919890020,-7274.0,0.00022,2]
[373238479,1752919890031,-2813.78853771,0.00022,2]
[373238480,1752919890041,-2215.07973,0.00022,3]
[373238481,1752919890051,-2000.0,0.00022,2]
[373238482,1752919890062,-151.0,0.00022,7]
[373238483,1752919890077,-151.0,0.00022,7]
[373238484,1752919890092,-298.374402,0.00022,7]
[373238485,1752919890103,-298.374402,0.00022,7]
[373238486,1752919890113,-500.0,0.00022,7]
[373238487,1752919890123,-500.0,0.00022,7]
[373238488,1752919890133,-500.0,0.00022,7]
[373238489,1752919890143,-500.0,0.00022,7]
[373238490,1752919890153,-500.0,0.00022,7]
[373238491,1752919890163,-500.0,0.00022,7]
[373238492,1752919890173,-500.0,0.00022,7]
[373238493,1752919890183,-500.0,0.00022,7]
[373238494,1752919890192,-500.0,0.00022,7]
[373238495,1752919890202,-243.25,0.00022,7]
[373238496,1752919890212,-500.0,0.00022,7]
[373238497,1752919890222,-500.0,0.00022,7]
[373238498,1752919890232,-500.0,0.00022,7]
[373238499,1752919890242,-500.0,0.00022,7]
[373238500,1752919890252,-476.80070012,0.00022,3]
[373238501,1752919890262,-476.80070012,0.00022,7]
[373238502,1752919890272,-151.0,0.00022,7]
[373238503,1752919890282,-210.82967408,0.00022,3]
[373238504,1752919890292,-4000.0,0.00022,4]
[373238505,1752919890302,-1500.0,0.00022006,2]
[373238506,1752919890312,-894.44330795,0.00022006,2]
[373238507,1752919890322,-150.0,0.00022015,2]
[373238508,1752919890332,-1500.0,0.00022017,2]
[373238509,1752919890342,-1000.0,0.00022018,2]
[373238510,1752919890351,-1000.0,0.00022021,2]
[373238511,1752919890362,-1688.8,0.00022042,2]
[373238512,1752919890372,-150.0,0.00022044,2]
[373238513,1752919890381,-150.0,0.00022046,2]
[373238514,1752919890392,-150.0,0.00022048,2]
[373238515,1752919890402,-203.0,0.0002205,2]
[373238516,1752919890412,-207.0,0.0002205,2]
[373238517,1752919890422,-212.0,0.0002205,2]
[373238518,1752919890433,-150.0,0.00022052,2]
[373238519,1752919890443,-150.0,0.00022052,2]
[373238520,1752919890453,-1000.0,0.00022082,2]
[373238521,1752919890463,-1000.0,0.00022095,2]
[373238522,1752919890473,-150.0,0.00022099,2]
[373238523,1752919890483,-188.03,0.000221,2]
[373238524,1752919890495,-10016.20945166,0.000221,2]
[373238525,1752919890732,-1000.0,0.00022103,2]
[373238526,1752919890742,-150.0,0.00022104,2]
[373238527,1752919890752,-150.0,0.00022108,2]
[373238528,1752919890762,-234.2627713,0.0002211,2]
[373238529,1752919890773,-150.0,0.0002211,2]
[373238530,1752919890783,-150.0,0.00022115,2]
[373238531,1752919890793,-150.0,0.00022119,2]
[373238532,1752919890802,-150.0,0.00022122,2]
[373238533,1752919890812,-150.0,0.00022125,2]
[373238534,1752919890822,-150.0,0.00022126,2]